Cogmind - Beta 13 @@@ ROGUE MODE // 2024.03.17 @ 21:10:55 Player: ChromeKnight Result: Destroyed by S-10 Pest with Light Assault Rifle Performance ------------- Evolutions (0) 0 Regions Visited (2) 400 Robots Destroyed (15) 75 Value Destroyed (302) 302 Prototype IDs (0) 0 Alien Tech Used (0) 0 Bonus (-25) -25 TOTAL SCORE: 752 Bonus ------- Follower Combat Kills 7 Friendly Fire -32 Cogmind --------- Core Integrity 0/250 Matter 266/300 Energy 223/250 System Corruption 0% Temperature Cool (0) Movement Treading (160) Location -10/Mines Parts ------- > --- POWER (1) -------- Ion Engine > --- PROPULSION (2) --- Light Treads > --- UTILITY (2) ------ Small Storage Unit Backup Plating I > --- WEAPON (2) ------- EM Pulse Gun Light Assault Rifle > --- INVENTORY (8) ---- Backup Power I Flight Unit Flight Unit Flight Unit Flight Unit Structural Scanner Peak State ------------ > --- POWER ------------ Ion Engine > --- PROPULSION ------- Light Treads Light Treads > --- UTILITY ---------- Small Storage Unit Backup Plating I > --- WEAPON ----------- Small Laser Light Assault Rifle > --- INVENTORY -------- Light Ion Engine Backup Power I Flight Unit Flight Unit Structural Scanner Light Armor Plating EM Pulse Gun Small Laser [Rating: 7] Favorites ----------- Power Ion Engine Engine Ion Engine Propulsion Light Treads Treads Light Treads Utility Small Storage Unit Storage Small Storage Unit Protection Light Armor Plating Weapon Light Assault Rifle Energy Gun Small Laser Ballistic Gun Light Assault Rifle Build | -11 -10 -10 ------- Run | Yrd Mat Min Slots Evolved . | . . . Power . | . . . Propulsion . | . . . Utility . | . . . Weapon . | . . . Parts Attached 12 | 6 4 2 Power 3 | 1 2 . Engine 3 | 1 2 . Core . | . . . Reactor . | . . . Propulsion 2 | 2 . . Treads 2 | 2 . . Leg . | . . . Wheel . | . . . Hover . | . . . Flight . | . . . Utility 3 | 1 1 1 Device . | . . . Storage 1 | 1 . . Processor . | . . . Hackware . | . . . Protection 2 | . 1 1 Artifact . | . . . Weapon 4 | 2 1 1 Energy Gun 3 | 1 1 1 Energy Cannon . | . . . Ballistic Gun 1 | 1 . . Ballistic Cannon . | . . . Launcher . | . . . Special Weapon . | . . . Impact Weapon . | . . . Slashing Weapon . | . . . Piercing Weapon . | . . . Special Melee Weapon . | . . . Unidentified Prototypes . | . . . Parts Lost 3 | . 2 1 Power . | . . . Propulsion 1 | . 1 . Utility 1 | . 1 . Weapon 1 | . . 1 Highest Loss Streak 2 | . 2 1 To Critical Strikes . | . . . Average Slot Usage (%) 87 | . 88 71 Engine 13 | . 13 14 Treads 26 | . 27 14 Storage 14 | . 14 14 Protection 4 | . 4 . Energy Gun 14 | . 14 14 Ballistic Gun 14 | . 14 14 Naked Turns . | . . . Heaviest Build 15 | 12 15 13 Greatest Support 40 | 40 40 20 Greatest Overweight (x) . | . . . Average Overweight (x) . | . . . Largest Inventory Capacity 8 | 8 8 8 Average Capacity 7 | 7 8 8 Most Carried 8 | 1 8 8 Average Carried 5 | . 6 7 Final Capacity 8 | 8 8 8 Final Carried 8 | 1 8 6 Class Distribution -------------------- 100% | Mutant Dominant Class ---------------- Mutant | -10/Materials Mutant | -10/Mines Resources | -11 -10 -10 ----------- Run | Yrd Mat Min Matter Collected 369 | 148 221 . Remotely . | . . . Salvage Created 495 | . 495 . Parts 22 | . 22 . Haulers Intercepted . | . . . Recyclers Shooed 2 | . 2 . Parts Field Recycled . | . . . Retrieved Matter . | . . . Parts Self-Destructed . | . . . Prevented . | . . . Kills | -11 -10 -10 ------- Run | Yrd Mat Min Combat Hostiles Destroyed 11 | . 11 . Guns 11 | . 11 . Classes Destroyed 6 | . 6 . Recycler 1 | . 1 . Mechanic 1 | . 1 . Operator 1 | . 1 . Watcher 1 | . 1 . Swarmer 5 | . 5 . Grunt 6 | . 6 . Best Kill Streak 3 | . 3 . Combat Bots Only 3 | . 3 . Max Kills in Single Turn 1 | . 1 . Gunslinging . | . . . Exploded . | . . . Melee . | . . . Uniques/NPCs Destroyed . | . . . Combat | -11 -10 -10 -------- Run | Yrd Mat Min Hostile Shots Fired 92 | . 84 8 Missed 27 | . 23 4 Damage Taken 861 | . 828 33 Core 255 | . 248 7 Absorbed by Shields . | . . . Regen/Repaired (Parts) 38 | . 38 . Core Remaining (%) 100 | 100 . . Volleys Fired 63 | . 60 3 Largest 2 | . 2 2 Hottest 60 | . 60 60 Shots Fired 123 | . 119 4 Gun 123 | . 119 4 Cannon . | . . . Launcher . | . . . Special . | . . . Kinetic 61 | . 60 1 Thermal 61 | . 59 2 Explosive . | . . . Electromagnetic 1 | . . 1 Robot Hit Streak 8 | . 8 . Robot Miss Streak 6 | . 6 4 Penetration Max . | . . . Secondary Targets . | . . . Shots Hit Robots 68 | . 68 . Core Hits 28 | . 28 . Critical Kills . | . . . Critical Parts Destroyed . | . . . Critical Strikes . | . . . Melee Attacks . | . . . Impact . | . . . Slashing . | . . . Piercing . | . . . Sneak Attacks . | . . . Combat Hostiles . | . . . Follow-up Attacks . | . . . Damage Inflicted 687 | . 687 . Guns 682 | . 682 . Cannons . | . . . Explosions . | . . . Melee . | . . . Ramming 5 | . 5 . Kinetic 252 | . 252 . Thermal 430 | . 430 . Explosive . | . . . Electromagnetic . | . . . Impact . | . . . Slashing . | . . . Piercing . | . . . Highest Corruption . | . . . Average Corruption . | . . . Corruption Purged . | . . . Corruption Blocked . | . . . Overload Shots . | . . . Overflow Damage . | . . . Projectiles . | . . . Explosions . | . . . Melee . | . . . Knockbacks . | . . . Impact . | . . . Kinetic . | . . . Secondary . | . . . Self-Inflicted Damage . | . . . Shots . | . . . Rammed 2 | . 2 . Targets Rammed 2 | . 2 . Kicked . | . . . Crushed . | . . . Highest Temperature 522 | . 522 4 Average Temperature 148 | . 151 2 Received Heat Transfer 405 | . 405 . Effects 11 | . 11 . Shutdowns 2 | . 2 . Energy Bleed 2 | . 2 . Interference 2 | . 2 . Matter Decay 1 | . 1 . Damage (minor) 1 | . 1 . Damage (core) 3 | . 3 . Siege Activations . | . . . Robots Corrupted . | . . . Combat Hostiles . | . . . Parts Fried . | . . . Impact Corruptions . | . . . Robots Melted . | . . . Combat Hostiles . | . . . Parts Melted 2 | . 2 . Heat Transferred 975 | . 975 . Parts Sabotaged . | . . . Parts Stolen . | . . . Parts Stripped . | . . . Power Chain Reactions . | . . . Alert | -11 -10 -10 ------- Run | Yrd Mat Min Peak Influence 195 | . 195 38 Initial 17 | . . 17 Average 77 | . 91 17 Maximum Alert Level . | . . . Low Security (%) 100 | 100 100 100 Level 1 . | . . . Level 2 . | . . . Level 3 . | . . . Level 4 . | . . . Level 5 . | . . . High Security . | . . . Max Security . | . . . Squads Dispatched 2 | . 2 . Investigation 2 | . 2 . Extermination . | . . . Reinforcement . | . . . Assault . | . . . Garrison . | . . . Intercept . | . . . Searches Triggered . | . . . Construction Impeded . | . . . Haulers Reinforced . | . . . Active Scanning Responses . | . . . Cargo Convoy Interrupts . | . . . Stealth | -11 -10 -10 --------- Run | Yrd Mat Min Distress Signals . | . . . Communications Jammed . | . . . Distress Signals . | . . . Times Spotted 18 | . 15 3 Peak Tracking Total 3 | . 3 3 Tactical Retreats 1 | . 1 . Traps | -11 -10 -10 ------- Run | Yrd Mat Min Traps Triggered 1 | . 1 . Indirectly . | . . . Trap Hack Attempts . | . . . Triggered . | . . . Disarmed . | . . . Reprogrammed . | . . . Reused . | . . . Traps Extracted . | . . . Installed . | . . . Triggered . | . . . Machines | -11 -10 -10 ---------- Run | Yrd Mat Min Machines Disabled . | . . . Max in Single Turn . | . . . Machines Repaired . | . . . Machines Dismantled . | . . . Machines Sabotaged . | . . . Overloaded Fab Kills . | . . . Hacking | -11 -10 -10 --------- Run | Yrd Mat Min Machines Accessed 4 | . 4 . Terminals 2 | . 2 . Fabricators . | . . . Repair Stations 1 | . 1 . Recycling Units 1 | . 1 . Scanalyzers . | . . . Garrison Access . | . . . Total Hacks 9 | . 9 . Successful 7 | . 7 . Failed 2 | . 2 . Catastrophic . | . . . Database Lockouts . | . . . Manual 5 | . 5 . Terminals 4 | . 4 . Fabricators . | . . . Repair Stations 4 | . 4 . Recycling Units 1 | . 1 . Scanalyzers . | . . . Garrison Access . | . . . Terminal Hacks . | . . . Fabricator Hacks . | . . . Repair Station Hacks 3 | . 3 . Scan Component 1 | . 1 . Repair 1 | . 1 . Refit 1 | . 1 . Recycling Unit Hacks . | . . . Scanalyzer . | . . . Garrison Access Hacks . | . . . Unauthorized Hacks 4 | . 4 . Terminals 3 | . 3 . Assimilate 2 | . 2 . Operators 1 | . 1 . Fabricators . | . . . Repair Stations . | . . . Recycling Units 1 | . 1 . Tunnel 1 | . 1 . Scanalyzers . | . . . Garrison Access . | . . . Data Cores Recovered . | . . . Used . | . . . Hacking Detections . | . . . Full Trace Events . | . . . Feedback Events . | . . . Feedback Blocked . | . . . Robot Schematics Acquired . | . . . Robots Built . | . . . Authchips . | . . . Time . | . . . Total Robot Build Rating . | . . . Part Schematics Acquired . | . . . Parts Built . | . . . Authchips . | . . . Time . | . . . Total Part Build Rating . | . . . Parts Repaired 1 | . 1 . Time 26 | . 26 . Parts Recycled . | . . . Recycled Matter . | . . . Retrieved Matter . | . . . Retrieved Components . | . . . Parts Scanalyzed . | . . . Part Schematics Acquired . | . . . Parts Damaged . | . . . Bothacking | -11 -10 -10 ------------ Run | Yrd Mat Min Used RIF Installer . | . . . Robots Hacked . | . . . Non-combat . | . . . Combat . | . . . Robot Hacks Applied . | . . . Relay Couplers Released . | . . . Fabnet Peak Effective % . | . . . Robots Rewired . | . . . Allies Hacked . | . . . Hacks Repelled . | . . . Allies | -11 -10 -10 -------- Run | Yrd Mat Min Total Allies 2 | . 1 1 Largest Group 1 | . 1 1 Highest-Rated Group 31 | . 10 31 Highest-Rated Ally 31 | . 10 31 Total Orders . | . . . Ally Attacks 4 | . . 4 Total Damage 42 | . . 42 Kills 1 | . . 1 Allies Corrupted . | . . . Allies Melted . | . . . Intel | -11 -10 -10 ------- Run | Yrd Mat Min Robot Analysis Total . | . . . Derelict Logs Recovered 1 | . . 1 Drone Launches . | . . . Drone Recoveries . | . . . Exploration | -11 -10 -10 ------------- Run | Yrd Mat Min Turns Passed 978 | 90 822 66 Spaces Moved 441 | 57 356 28 Core 9 | 9 . . Treads 432 | 48 356 28 Legs . | . . . Wheels . | . . . Hover . | . . . Flight . | . . . Fastest Speed 50 | 50 160 160 Average Speed 157 | 142 160 160 Slowest Speed 160 | 160 160 160 Overloaded Moves . | . . . Propulsion Burnouts . | . . . Robots Hopped . | . . . Cave-ins Triggered . | . . . Exploration Rate (%) 23 | 4 58 9 Regions Visited 2 Branch Regions 1 Pre-discovered Areas 2 | . 1 1 Known Exits Taken . | . . . Unknown Exits Taken 2 | 1 1 . Scrap Searched . | . . . Spaces Dug . | . . . Terrain Destroyed . | . . . Melee . | . . . Projectile . | . . . AOE . | . . . Terrain Rammed . | . . . Walls Destroyed . | . . . Machines Disabled . | . . . Actions | -11 -10 -10 --------- Run | Yrd Mat Min Total 617 | 63 506 48 Wait 80 | . 65 15 Move 439 | 56 355 28 Hop . | . . . Pick Up 13 | 1 12 . Fast Attach 8 | 6 2 . Attach 2 | . . 2 Detach 1 | . 1 . Swap 2 | . 2 . Drop 7 | . 7 . Fire 63 | . 60 3 Melee . | . . . Ram . | . . . Kick . | . . . Crush 2 | . 2 . Escape Stasis . | . . . Rewire . | . . . Trap . | . . . Miscellaneous . | . . . Route ------- -11/Scrapyard -10/Materials (discovered 3 exits: [*Mat x2] / [*Min]) -10/Mines (discovered 1 exit: [*Mat]) History --------- Turn | Location | Event 39 | -11/Scrapyard | Discovered new exit (range 16) 91 | -11/Scrapyard | Entered Materials 301 | -10/Materials | Build established: Mutant 364 | -10/Materials | Discovered new exit (range 10) 636 | -10/Materials | Repaired Ion Engine 711 | -10/Materials | Discovered new exit (range 3) 835 | -10/Materials | Discovered new exit (range 8) 883 | -10/Materials | Core integrity fell below 50% 887 | -10/Materials | Core integrity fell below 20% 913 | -10/Materials | Entered Mines 916 | -10/Mines | Received a Mining Laser from a helpful Derelict 945 | -10/Mines | Discovered new exit (range 12) 979 | -10/Mines | Destroyed by S-10 Pest with Light Assault Rifle Last Messages --------------- 00897_ Acquired 28 matter. LOCATION=UNKNOWN GOAL=ESCAPE Something is scanning the area. 00914_ A derelict emerges from the shadows: "What are you doing alone down here?" 00916_ 6Y-3Y2(g): "And why aren't you carrying a mining laser?! Certainly you don't want THEM to uncover you when the ceiling comes crashing down? Here, take my spare." 00919_ 6Y-3Y2(g): "You're apparently new around these parts, I'll cover you." 00921_ 6Y-3Y2(g): "Mining lasers are a lot more useful than you might think..." 00945_ Acquired derelict log, extracted data. World map updated: -10/Materials. 00945_ EXIT=FOUND 00971_ S-10 Pest destroyed. 00974_ 6Y-3Y2(g) destroyed. 00978_ Sml. Laser destroyed. Map ----- +----------------------------------------------------+ | ????????????????????????????????? | | ????????????????????????????????? | | ????????????????????????????????? | | ????????????????????????????????? | | ????????????????????????????????? | | ????????????????????????????????? | | ????????????????????????????????? | | ????????????????????????????????? | | ????????????????????????????????? | | ????????????????????????????????? | | ??????????????????????? ???????? | | ?????????????????????? ???????? | | ?????????????????????? ???????? | | ?????????????????????? #??????? | | ?????????????????????? ###???? | | ??????????????????????? ##??? | | ??????????????????????? #??? | | ??????????????????????? #??? | | ?????????????????????#?# ???? | | ???????????????????? #?# #???? | | ?????????????????### ???r ##??? | | ?????????????????# ???? s #??? | | ?????????????????# #????#s #??? | | ??????????????#### ######% ##?? | | ??????????????# = < #?? | | ??????????????# r @ #?? | | ??????????????# ########## #?? | | ??????????????# #????????? #?? | | ??????????????# #?????????? #? | | ??????????????# ##????????? #? | | ??????????????# ####??????? #? | | ??????????????# ##?????? #? | | ??????????????# |##??????##? | | ??????????????## #????????? | | ???????????????#### #????????? | | ??????????????????## #????????? | | ???????????????????## ##????????? | | ????????????????????###?????????? | | ????????????????????????????????? | | ????????????????????????????????? | | ????????????????????????????????? | | ????????????????????????????????? | | ????????????????????????????????? | | ????????????????????????????????? | | ????????????????????????????????? | | ????????????????????????????????? | | ????????????????????????????????? | | ????????????????????????????????? | | ????????????????????????????????? | | ????????????????????????????????? | +----------------------------------------------------+ Best States ------------- Heat Dissipation 25 Energy Generation 10 Energy Capacity 250 Matter Stores 300 Matter Capacity 300 Sight Range 16 Terrain Scan Density 10 Armor Coverage 150 Evasion (%) 40 Recoil Reduction 2 Item Schematics ----------------- None Robot Schematics ------------------ None Fabricated ------------ Nothing Alien Tech Used ----------------- None Achievements -------------- None Challenges ------------ None Game ------ Seed ThrowingSuperchargedLaser Manual? 0 Play Time 00:05:09 Cumulative 439.8 hours Start 2024.03.17 @ 21:06:19 End 2024.03.17 @ 21:10:55 Sessions 1 Manual Loads 0 Difficulty Rogue Special Mode None Game No. 767 Rogue 612 Adventurer 148 Explorer 7 Win Type - Total 19 Types 16/0/2/1/0/0/0/0/0 Lore% 77 Gallery% 88 Achievement% 73 Wizard Run 0 Options --------- Layout 1 ASCII 0 Keyboard 0 Movement Numpad Keybinds 0 Fullscreen 2 Font 24/Smallcaps Map View 50x35 Zoom Use 0% Tactical HUD 1 Map Filters NONE Filters NONE Steam 1 RUN: 773b77ab-8a84-4b1c-b5dc-b59d3a76cd90